fUSD/lending_fUSD_20240424
["ID","MTS","AMOUNT","RATE_DAILY","PERIOD"]
[323442134,1713991851605,-516.0,0.00012794,2]
[323442135,1713991851615,-455.78271799,0.00012799,2]
[323442136,1713991851625,-1030.54125732,0.00012799,3]
[323442137,1713991851635,-1081.54694968,0.00012799,3]
[323442138,1713991851644,-398015.72281206,0.000128,5]
[323442139,1713991851653,-23990.0,0.000128,2]
[323442140,1713991851664,-155.0,0.000128,2]
[323442141,1713991851673,-134051.19205312,0.000128,5]
[323442142,1713991851682,-446600.82827924,0.000128,5]
[323442143,1713991851692,-215915.64744748,0.000128,2]
[323442144,1713991851701,-2258.755748,0.000128,2]
[323442145,1713991851710,-2258.755748,0.000128,2]
[323442146,1713991851720,-4400.0,0.000128,4]
[323442147,1713991851729,-378.655689,0.000128,2]
[323442148,1713991851738,-378.655689,0.000128,2]
[323442149,1713991851749,-8266.07,0.00012802,2]
[323442150,1713991851759,-1626.0,0.00012822,2]
[323442151,1713991851768,-2892.8,0.00012853,2]
[323442152,1713991851779,-20989.28,0.00012854,2]
[323442153,1713991851788,-47610.70405862,0.00012863,2]
[323442154,1713991851797,-2258.755748,0.00012863,2]
[323442155,1713991851807,-2258.755748,0.00012863,2]
[323442156,1713991851816,-378.655689,0.00012863,2]
[323442157,1713991851826,-378.655689,0.00012863,2]
[323442158,1713991851835,-500.0,0.00012867,2]
[323442159,1713991851845,-931.30766592,0.0001287,2]
[323442160,1713991851855,-209.85536267,0.00012874,2]
[323442161,1713991851864,-5000.0,0.00012874,2]
[323442162,1713991851873,-1538.23,0.00012875,2]
[323442163,1713991851882,-500.0,0.00012876,2]
[323442164,1713991851892,-1035.0,0.00012876,2]
[323442165,1713991851902,-500.0,0.00012876,2]
[323442166,1713991851912,-500.0,0.00012876,2]
[323442167,1713991851922,-647.06,0.00012876,2]
[323442168,1713991851931,-500.0,0.00012876,2]
[323442169,1713991851941,-500.0,0.00012876,2]
[323442170,1713991851950,-840.66,0.00012876,2]
[323442171,1713991851959,-805.34,0.00012876,2]
[323442172,1713991851968,-856.22,0.00012876,2]
[323442173,1713991851979,-500.0,0.00012876,2]
[323442174,1713991851989,-500.0,0.00012876,2]
[323442175,1713991852000,-500.0,0.00012876,2]
[323442176,1713991852010,-500.0,0.00012876,2]
[323442177,1713991852021,-500.0,0.00012876,2]
[323442178,1713991852031,-615.27,0.00012876,2]
[323442179,1713991852040,-574.89,0.00012876,2]
[323442180,1713991852051,-591.14,0.00012876,2]
[323442181,1713991852061,-150.0,0.00012876,2]
[323442182,1713991852072,-506.23,0.00012876,2]
[323442183,1713991852083,-859.61,0.00012876,2]
[323442184,1713991852093,-842.34,0.00012876,2]
[323442185,1713991852103,-548.43,0.00012876,2]
[323442186,1713991852113,-500.0,0.00012876,2]
[323442187,1713991852122,-500.0,0.00012876,2]
[323442188,1713991852131,-370.90936806,0.00012876,2]
[323442189,1713991852142,-665.53,0.00012876,2]
[323442190,1713991852151,-500.0,0.00012876,2]
[323442191,1713991852162,-500.0,0.00012876,2]
[323442192,1713991852172,-500.0,0.00012876,2]
[323442193,1713991852182,-736.69,0.00012876,2]
[323442194,1713991852191,-826.15,0.00012876,2]
[323442195,1713991852201,-500.0,0.00012876,2]
[323442196,1713991852211,-500.0,0.00012876,2]
[323442197,1713991852221,-807.78,0.00012876,2]
[323442198,1713991852230,-2038.9,0.00012876,2]
[323442199,1713991852239,-705.7,0.00012876,2]
[323442200,1713991852248,-1307.93,0.00012876,2]
[323442201,1713991852257,-546.95,0.00012876,2]
[323442202,1713991852267,-1642.17,0.00012876,2]
[323442203,1713991852276,-3738.06,0.00012876,2]
[323442204,1713991852286,-805.45,0.00012876,2]
[323442205,1713991852298,-500.0,0.00012876,2]
[323442206,1713991852308,-1911.86,0.00012876,2]
[323442207,1713991852318,-500.0,0.00012876,2]
[323442208,1713991852328,-1296.39,0.00012876,2]
[323442209,1713991852338,-690.75,0.00012876,2]
[323442210,1713991852348,-500.0,0.00012876,2]
[323442211,1713991852358,-857.69,0.00012876,2]
[323442212,1713991852367,-2921.56,0.00012876,2]
[323442213,1713991852378,-1941.91,0.00012876,2]
[323442214,1713991852389,-936.37,0.00012876,2]
[323442215,1713991852400,-500.0,0.00012876,2]
[323442216,1713991852410,-1967.54,0.00012876,2]
[323442217,1713991852419,-500.0,0.00012876,2]
[323442218,1713991852429,-3113.04,0.00012876,2]
[323442219,1713991852438,-621.85,0.00012876,2]
[323442220,1713991852449,-611.57,0.00012876,2]
[323442221,1713991852458,-2015.75,0.00012876,2]
[323442222,1713991852468,-500.0,0.00012876,2]
[323442223,1713991852478,-1275.63,0.00012876,2]
[323442224,1713991852488,-696.19,0.00012876,2]
[323442225,1713991852498,-1820.17,0.00012876,2]
[323442226,1713991852507,-947.66,0.00012876,2]
[323442227,1713991852518,-1464.99,0.00012876,2]
[323442228,1713991852528,-2801.3,0.00012876,2]
[323442229,1713991852537,-41852.14,0.00012876,2]
[323442230,1713991852800,-500.0,0.00012876,2]
[323442231,1713991852812,-500.0,0.00012876,2]
[323442232,1713991852821,-1433.62,0.00012876,2]
[323442233,1713991852831,-1096.33,0.00012876,2]
[323442234,1713991852840,-1204.62,0.00012876,2]
[323442235,1713991852849,-1145.17,0.00012876,2]
[323442236,1713991852858,-670.73,0.00012876,2]
[323442237,1713991852868,-818.13,0.00012876,2]
[323442238,1713991852877,-802.18,0.00012876,2]
[323442239,1713991852887,-27802.61,0.00012876,2]
[323442240,1713991852896,-926.5,0.00012876,2]
[323442241,1713991852906,-956.63,0.00012876,2]
[323442242,1713991852916,-1022.62,0.00012876,2]
[323442243,1713991852925,-807.35,0.00012876,2]
[323442244,1713991852935,-1268.18,0.00012876,2]
[323442245,1713991852944,-552.13,0.00012876,2]
[323442246,1713991852954,-1304.69,0.00012876,2]
[323442247,1713991852963,-745.21,0.00012876,2]
[323442248,1713991852972,-1518.01,0.00012876,2]
[323442249,1713991852983,-1258.54,0.00012876,2]
[323442250,1713991852993,-469.36,0.00012876,2]
[323442251,1713991853003,-1273.21,0.00012876,2]
[323442252,1713991853012,-500.0,0.00012876,2]
[323442253,1713991853021,-855.16,0.00012876,2]
[323442254,1713991853031,-3556.77,0.00012876,2]
[323442255,1713991853040,-661.08,0.00012876,2]
[323442256,1713991853049,-1147.95,0.00012876,2]
[323442257,1713991853058,-616.17,0.00012876,2]
[323442258,1713991853068,-500.0,0.00012876,2]
[323442259,1713991853077,-711.37,0.00012876,2]
[323442260,1713991853087,-1278.88,0.00012876,2]
[323442261,1713991853096,-500.0,0.00012876,2]
[323442262,1713991853106,-630.07,0.00012876,2]
[323442263,1713991853115,-1352.75,0.00012876,2]
[323442264,1713991853124,-500.0,0.00012876,2]
[323442265,1713991853133,-1942.44,0.00012876,2]
[323442266,1713991853143,-1004.93,0.00012876,2]
[323442267,1713991853153,-500.0,0.00012876,2]
[323442268,1713991853163,-500.0,0.00012876,2]
[323442269,1713991853172,-607.85,0.00012876,2]
[323442270,1713991853182,-970.3,0.00012876,2]
[323442271,1713991853191,-500.0,0.00012876,2]
[323442272,1713991853201,-500.0,0.00012876,2]
[323442273,1713991853210,-2785.8,0.00012876,2]
[323442274,1713991853220,-1408.5,0.00012876,2]
[323442275,1713991853230,-2017.97,0.00012876,2]
[323442276,1713991853240,-1253.8,0.00012876,2]
[323442277,1713991853249,-2871.24,0.00012876,2]
[323442278,1713991853259,-500.0,0.00012876,2]
[323442279,1713991853269,-1364.69,0.00012876,2]
[323442280,1713991853278,-556.02,0.00012876,2]
[323442281,1713991853288,-1040.15,0.00012876,2]
[323442282,1713991853299,-2840.23,0.00012876,2]
[323442283,1713991853310,-500.0,0.00012876,2]
[323442284,1713991853320,-2059.51,0.00012876,2]
[323442285,1713991853329,-500.0,0.00012876,2]
[323442286,1713991853338,-715.7,0.00012876,2]
[323442287,1713991853348,-500.0,0.00012876,2]
[323442288,1713991853358,-544.33,0.00012876,2]
[323442289,1713991853368,-1817.33,0.00012876,2]
[323442290,1713991853377,-1548.88,0.00012876,2]
[323442291,1713991853386,-987.87,0.00012876,2]
[323442292,1713991853396,-616.24,0.00012876,2]
[323442293,1713991853405,-3875.02,0.00012876,2]
[323442294,1713991853416,-500.0,0.00012876,2]
[323442295,1713991853425,-1544.0,0.00012876,2]
[323442296,1713991853435,-500.0,0.00012876,2]
[323442297,1713991853444,-1231.43,0.00012876,2]
[323442298,1713991853454,-2789.34,0.00012876,2]
[323442299,1713991853463,-3734.67,0.00012876,2]
[323442300,1713991853472,-8238.28,0.00012876,2]
[323442301,1713991853482,-1407.11,0.00012876,2]
[323442302,1713991853492,-500.0,0.00012876,2]
[323442303,1713991853502,-1307.71,0.00012876,2]
[323442304,1713991853511,-1027.0,0.00012876,2]
[323442305,1713991853520,-835.89,0.00012876,2]
[323442306,1713991853529,-1276.67,0.00012876,2]
[323442307,1713991853540,-500.0,0.00012876,2]
[323442308,1713991853549,-500.0,0.00012876,2]
[323442309,1713991853560,-1932.45,0.00012876,2]
[323442310,1713991853570,-1468.72,0.00012876,2]
[323442311,1713991853579,-500.0,0.00012876,2]
[323442312,1713991853591,-713.89,0.00012876,2]
[323442313,1713991853602,-846.41,0.00012876,2]
[323442314,1713991853611,-8052.86,0.00012876,2]
[323442315,1713991853620,-500.0,0.00012876,2]
[323442316,1713991853630,-677.71,0.00012876,2]
[323442317,1713991853640,-208.61,0.00012884,2]
[323442318,1713991853649,-10000.0,0.00012885,2]
[323442319,1713991853660,-5000.0,0.00012895,2]
[323442320,1713991853670,-365.97088217,0.000129,2]
[323442321,1713991853679,-10719.32113538,0.000129,2]
[323442322,1713991853688,-200.01599054,0.000129,2]
[323442323,1713991853698,-173.44820364,0.000129,2]
[323442324,1713991853708,-266.31372901,0.000129,2]
[323442325,1713991853717,-4778.0,0.000129,4]
[323442326,1713991853726,-2498.71570487,0.000129,2]
[323442327,1713991853735,-2498.71570482,0.000129,2]
[323442328,1713991853744,-2498.71570482,0.000129,2]
[323442329,1713991853754,-2498.71570482,0.000129,2]
[323442330,1713991853763,-2498.71570482,0.000129,2]
[323442331,1713991853773,-2498.71570482,0.000129,2]
[323442332,1713991853783,-2498.71570482,0.000129,2]
[323442333,1713991853793,-2498.71570482,0.000129,2]
[323442334,1713991853803,-205.78552149,0.000129,2]
[323442335,1713991853814,-2612.05442845,0.000129,2]
[323442336,1713991853826,-795.25569105,0.000129,2]
[323442337,1713991853835,-1585.59,0.00012922,2]
[323442338,1713991853845,-304.0,0.0001293,2]
[323442339,1713991853855,-5000.0,0.0001293,2]
[323442340,1713991853865,-5000.0,0.00012936,2]
[323442341,1713991853876,-5000.0,0.00012948,2]
[323442342,1713991853885,-4630.23,0.00012954,2]
[323442343,1713991853894,-2410.13,0.00012958,2]
[323442344,1713991853903,-5000.0,0.00012966,2]
[323442345,1713991853913,-1000.0,0.0001297,2]
[323442346,1713991853922,-1000.0,0.0001297,2]
[323442347,1713991853931,-500.0,0.0001297,2]
[323442348,1713991853942,-1500.0,0.0001297,2]
[323442349,1713991853951,-500.0,0.0001297,2]
[323442350,1713991853961,-500.0,0.0001297,2]
[323442351,1713991853970,-5000.0,0.00012987,2]
[323442352,1713991853979,-2208.8948925,0.0001299,2]
[323442353,1713991853989,-24416.27633537,0.0001299,2]
[323442354,1713991853998,-23912.8097847,0.00012991,2]
[323442355,1713991854008,-3000.0,0.00012999,2]
[323442356,1713991854017,-222.83055057,0.00012999,2]
[323442357,1713991854027,-4475922.67726301,0.00013,2]
[323442358,1713991854382,-353.9145528,0.00013,2]
[323442359,1713991854397,-3577.80730142,0.00013,2]
[323442360,1713991854408,-376.17167403,0.00013,2]
[323442361,1713991854419,-1455846.05270692,0.00013,2]
[323442362,1713991854431,-312155.25765728,0.00013,2]
[323442363,1713991854441,-10312.64728852,0.00013,2]
[323442364,1713991854453,-2724.0,0.00013,2]
[323442365,1713991854465,-380.04,0.00013,2]
[323442366,1713991854480,-6715.718004,0.00013,2]
[323442367,1713991854491,-2227.68,0.00013,2]
[323442368,1713991854505,-9388.97324363,0.00013,2]
[323442369,1713991854517,-550.08360779,0.00013,2]
[323442370,1713991854530,-9840.98129079,0.00013,2]
[323442371,1713991854541,-1601.74078846,0.00013,2]
[323442372,1713991854553,-281.68,0.00013,2]
[323442373,1713991854628,-6017.90005343,0.00013,2]
[323442374,1713991854639,-1010.0,0.00013,2]
[323442375,1713991854651,-1845.38083646,0.00013,2]
[323442376,1713991854664,-1768.99846603,0.00013,2]
[323442377,1713991854695,-961.2,0.00013,2]
[323442378,1713991854711,-9550.64860157,0.00013,2]
[323442379,1713991854961,-207.25059114,0.00010999,2]
[323442380,1713991854971,-5846.4142757,0.00010999,2]
[323442381,1713991854981,-812559.05650549,0.00013,2]
[323442382,1713991854992,-385.401005,0.00013,2]
[323442383,1713991855003,-3212.71782286,0.00013,2]
[323442384,1713991856965,-198550.08901669,0.00013,2]
[323442385,1713991856977,-290332.29118444,0.00013,2]
[323442386,1713991856988,-2389076.10121038,0.00013,2]
[323442387,1713991857000,-521.90737213,0.00013,2]
[323442388,1713991857010,-500.0,0.00013,2]
[323442389,1713991857022,-1504702.07028939,0.00013,2]
[323442390,1713991857034,-1000.0,0.00013,2]
[323442391,1713991857045,-16463097.30078686,0.00013,2]
[323442392,1713991857055,-2848382.6469847,0.00013,2]
[323442393,1713991857066,-763.23827296,0.00013,2]
[323442394,1713991857077,-1076752.43765043,0.00013,2]
[323442395,1713991857087,-2258.755748,0.00013,2]
[323442396,1713991857098,-2258.755748,0.00013,2]
[323442397,1713991857109,-2258.755748,0.00013,2]
[323442398,1713991857120,-2258.755748,0.00013,2]
[323442399,1713991857130,-2258.755748,0.00013,2]
[323442400,1713991857141,-2258.755748,0.00013,2]
[323442401,1713991857153,-2258.755748,0.00013,2]
[323442402,1713991857165,-2258.755745,0.00013,2]
[323442403,1713991857177,-1003.2,0.00013,2]
[323442404,1713991857188,-378.655689,0.00013,2]
[323442405,1713991857198,-378.655689,0.00013,2]
[323442406,1713991857209,-378.655689,0.00013,2]
[323442407,1713991857219,-378.655689,0.00013,2]
[323442408,1713991857229,-378.655689,0.00013,2]
[323442409,1713991857240,-378.655689,0.00013,2]
[323442410,1713991857251,-378.655689,0.00013,2]
[323442411,1713991857261,-378.655692,0.00013,2]
[323442412,1713991857273,-301.6,0.00013,2]
[323442413,1713991857285,-162.82,0.00013047,2]
[323442414,1713991857297,-150.0,0.00013047,2]
[323442415,1713991857310,-442.82,0.00013047,2]
[323442416,1713991857321,-150.0,0.00013047,2]
[323442417,1713991857332,-521.47,0.00013047,2]
[323442418,1713991857343,-150.0,0.00013047,2]
[323442419,1713991857355,-4992.91381588,0.0001305,2]
[323442420,1713991857366,-182.07,0.0001309,2]
[323442421,1713991857377,-500.0,0.0001315,2]
[323442422,1713991857388,-1035.0,0.0001315,2]
[323442423,1713991857399,-500.0,0.0001315,2]
[323442424,1713991857409,-647.06,0.0001315,2]
[323442425,1713991857422,-500.0,0.0001315,2]
[323442426,1713991857433,-840.66,0.0001315,2]
[323442427,1713991857443,-805.34,0.0001315,2]
[323442428,1713991857454,-856.22,0.0001315,2]
[323442429,1713991857464,-500.0,0.0001315,2]
[323442430,1713991857475,-500.0,0.0001315,2]
[323442431,1713991857486,-500.0,0.0001315,2]
[323442432,1713991857496,-500.0,0.0001315,2]
[323442433,1713991857507,-500.0,0.0001315,2]
[323442434,1713991857517,-615.27,0.0001315,2]
[323442435,1713991857527,-574.89,0.0001315,2]
[323442436,1713991857538,-591.14,0.0001315,2]
[323442437,1713991857548,-150.0,0.0001315,2]
[323442438,1713991857558,-506.23,0.0001315,2]
[323442439,1713991857568,-859.61,0.0001315,2]
[323442440,1713991857579,-842.34,0.0001315,2]
[323442441,1713991857589,-548.43,0.0001315,2]
[323442442,1713991857600,-500.0,0.0001315,2]
[323442443,1713991857610,-500.0,0.0001315,2]
[323442444,1713991857620,-665.53,0.0001315,2]
[323442445,1713991857631,-500.0,0.0001315,2]
[323442446,1713991857641,-500.0,0.0001315,2]
[323442447,1713991857652,-500.0,0.0001315,2]
[323442448,1713991857663,-736.69,0.0001315,2]
[323442449,1713991857675,-826.15,0.0001315,2]
[323442450,1713991857685,-500.0,0.0001315,2]
[323442451,1713991857696,-500.0,0.0001315,2]
[323442452,1713991857707,-807.78,0.0001315,2]
[323442453,1713991857717,-705.7,0.0001315,2]
[323442454,1713991857727,-1307.93,0.0001315,2]
[323442455,1713991857737,-546.95,0.0001315,2]
[323442456,1713991857747,-1642.17,0.0001315,2]
[323442457,1713991857758,-805.45,0.0001315,2]
[323442458,1713991857768,-500.0,0.0001315,2]
[323442459,1713991857778,-1911.86,0.0001315,2]
[323442460,1713991857788,-500.0,0.0001315,2]
[323442461,1713991857798,-1296.39,0.0001315,2]
[323442462,1713991857809,-690.75,0.0001315,2]
[323442463,1713991857820,-500.0,0.0001315,2]
[323442464,1713991857830,-857.69,0.0001315,2]
[323442465,1713991857841,-2921.56,0.0001315,2]
[323442466,1713991857851,-1941.91,0.0001315,2]
[323442467,1713991857861,-936.37,0.0001315,2]
[323442468,1713991857871,-500.0,0.0001315,2]
[323442469,1713991857882,-1967.54,0.0001315,2]
[323442470,1713991857892,-500.0,0.0001315,2]
[323442471,1713991857902,-3113.04,0.0001315,2]
[323442472,1713991857912,-621.85,0.0001315,2]
[323442473,1713991857923,-611.57,0.0001315,2]
[323442474,1713991857933,-2015.75,0.0001315,2]
[323442475,1713991857944,-500.0,0.0001315,2]
[323442476,1713991857954,-1275.63,0.0001315,2]
[323442477,1713991857964,-696.19,0.0001315,2]
[323442478,1713991857974,-1820.17,0.0001315,2]
[323442479,1713991857984,-947.66,0.0001315,2]
[323442480,1713991857994,-1464.99,0.0001315,2]
[323442481,1713991858004,-2801.3,0.0001315,2]
[323442482,1713991858014,-41852.14,0.0001315,2]
[323442483,1713991858024,-500.0,0.0001315,2]
[323442484,1713991858034,-500.0,0.0001315,2]
[323442485,1713991858045,-1433.62,0.0001315,2]
[323442486,1713991858057,-1096.33,0.0001315,2]
[323442487,1713991858068,-1204.62,0.0001315,2]
[323442488,1713991858080,-1145.17,0.0001315,2]
[323442489,1713991858092,-670.73,0.0001315,2]
[323442490,1713991858102,-818.13,0.0001315,2]
[323442491,1713991858114,-802.18,0.0001315,2]
[323442492,1713991858125,-27802.61,0.0001315,2]
[323442493,1713991858136,-926.5,0.0001315,2]
[323442494,1713991858148,-956.63,0.0001315,2]
[323442495,1713991858160,-1022.62,0.0001315,2]
[323442496,1713991858174,-807.35,0.0001315,2]
[323442497,1713991858185,-1268.18,0.0001315,2]
[323442498,1713991858197,-552.13,0.0001315,2]
[323442499,1713991858209,-745.21,0.0001315,2]
[323442500,1713991858222,-1518.01,0.0001315,2]
[323442501,1713991858233,-1304.69,0.0001315,2]
[323442502,1713991858245,-1258.54,0.0001315,2]
[323442503,1713991858256,-1273.21,0.0001315,2]
[323442504,1713991858266,-500.0,0.0001315,2]
[323442505,1713991858277,-855.16,0.0001315,2]
[323442506,1713991858287,-3556.77,0.0001315,2]
[323442507,1713991858300,-661.08,0.0001315,2]
[323442508,1713991858312,-1147.95,0.0001315,2]
[323442509,1713991858323,-616.17,0.0001315,2]
[323442510,1713991858335,-500.0,0.0001315,2]
[323442511,1713991858347,-711.37,0.0001315,2]
[323442512,1713991858358,-1278.88,0.0001315,2]
[323442513,1713991858368,-500.0,0.0001315,2]
[323442514,1713991858381,-630.07,0.0001315,2]
[323442515,1713991858391,-1352.75,0.0001315,2]
[323442516,1713991858402,-500.0,0.0001315,2]
[323442517,1713991858412,-1942.44,0.0001315,2]
[323442518,1713991858423,-1004.93,0.0001315,2]
[323442519,1713991858434,-500.0,0.0001315,2]
[323442520,1713991858444,-533.60169094,0.0001315,2]
[323442521,1713991858453,-970.3,0.0001315,2]
[323442522,1713991858463,-607.85,0.0001315,2]
[323442523,1713991858474,-500.0,0.0001315,2]
[323442524,1713991858487,-500.0,0.0001315,2]
[323442525,1713991858496,-2785.8,0.0001315,2]
[323442526,1713991858506,-1408.5,0.0001315,2]
[323442527,1713991858516,-2017.97,0.0001315,2]
[323442528,1713991858526,-1253.8,0.0001315,2]
[323442529,1713991858535,-2871.24,0.0001315,2]
[323442530,1713991858545,-500.0,0.0001315,2]
[323442531,1713991858555,-556.02,0.0001315,2]
[323442532,1713991858564,-1364.69,0.0001315,2]
[323442533,1713991858575,-1040.15,0.0001315,2]
[323442534,1713991858585,-2840.23,0.0001315,2]
[323442535,1713991858595,-500.0,0.0001315,2]
[323442536,1713991858605,-2059.51,0.0001315,2]
[323442537,1713991858614,-500.0,0.0001315,2]
[323442538,1713991858623,-715.7,0.0001315,2]
[323442539,1713991858633,-500.0,0.0001315,2]
[323442540,1713991858642,-544.33,0.0001315,2]
[323442541,1713991858651,-1817.33,0.0001315,2]
[323442542,1713991858661,-1548.88,0.0001315,2]
[323442543,1713991858671,-987.87,0.0001315,2]
[323442544,1713991858681,-616.24,0.0001315,2]
[323442545,1713991858690,-3875.02,0.0001315,2]
[323442546,1713991858700,-500.0,0.0001315,2]
[323442547,1713991858709,-1544.0,0.0001315,2]
[323442548,1713991858720,-277.22082493,0.0001315,2]
[323442549,1713991858729,-1231.43,0.0001315,2]
[323442550,1713991858739,-3734.67,0.0001315,2]
[323442551,1713991858748,-2789.34,0.0001315,2]
[323442552,1713991858757,-8238.28,0.0001315,2]
[323442553,1713991858766,-1407.11,0.0001315,2]
[323442554,1713991858775,-500.0,0.0001315,2]
[323442555,1713991858784,-1307.71,0.0001315,2]
[323442556,1713991858794,-1027.0,0.0001315,2]
[323442557,1713991858803,-835.89,0.0001315,2]
[323442558,1713991858813,-1276.67,0.0001315,2]
[323442559,1713991858822,-316.30168453,0.0001315,2]
[323442560,1713991858832,-500.0,0.0001315,2]
[323442561,1713991858841,-1932.45,0.0001315,2]
[323442562,1713991858850,-1468.72,0.0001315,2]
[323442563,1713991858859,-500.0,0.0001315,2]
[323442564,1713991858868,-713.89,0.0001315,2]
[323442565,1713991858878,-846.41,0.0001315,2]
[323442566,1713991858887,-8052.86,0.0001315,2]
[323442567,1713991859300,-500.0,0.0001315,2]
[323442568,1713991859324,-677.71,0.0001315,2]
[323442569,1713991859335,-1675.99,0.00013151,2]
[323442570,1713991859346,-888.55,0.00013151,2]
[323442571,1713991859356,-2011.8,0.00013151,2]
[323442572,1713991859365,-1676.5,0.00013151,2]
[323442573,1713991859375,-1397.08,0.00013151,2]
[323442574,1713991859386,-1000.0,0.00013179,2]
[323442575,1713991859396,-208.61,0.0001331,2]
[323442576,1713991859406,-3000.0,0.0001335,2]
[323442577,1713991859417,-3659.95,0.0001337,10]
[323442578,1713991859426,-500.0,0.00013424,2]
[323442579,1713991859436,-1035.0,0.00013424,2]
[323442580,1713991859445,-364.61806727,0.00013424,2]
[323442581,1713991859455,-647.06,0.00013424,2]
[323442582,1713991859465,-500.0,0.00013424,2]
[323442583,1713991859474,-840.66,0.00013424,2]
[323442584,1713991859484,-805.34,0.00013424,2]
[323442585,1713991859494,-856.22,0.00013424,2]
[323442586,1713991859503,-500.0,0.00013424,2]
[323442587,1713991859512,-500.0,0.00013424,2]
[323442588,1713991859522,-500.0,0.00013424,2]
[323442589,1713991859531,-500.0,0.00013424,2]
[323442590,1713991859540,-500.0,0.00013424,2]
[323442591,1713991859549,-615.27,0.00013424,2]
[323442592,1713991859559,-574.89,0.00013424,2]
[323442593,1713991859568,-591.14,0.00013424,2]
[323442594,1713991859577,-150.0,0.00013424,2]
[323442595,1713991859587,-506.23,0.00013424,2]
[323442596,1713991859596,-859.61,0.00013424,2]
[323442597,1713991859606,-842.34,0.00013424,2]
[323442598,1713991859615,-548.43,0.00013424,2]
[323442599,1713991859624,-500.0,0.00013424,2]
[323442600,1713991859634,-500.0,0.00013424,2]
[323442601,1713991859644,-665.53,0.00013424,2]
[323442602,1713991859653,-500.0,0.00013424,2]
[323442603,1713991859663,-500.0,0.00013424,2]
[323442604,1713991859673,-500.0,0.00013424,2]
[323442605,1713991859683,-736.69,0.00013424,2]
[323442606,1713991859692,-826.15,0.00013424,2]
[323442607,1713991859701,-500.0,0.00013424,2]
[323442608,1713991859711,-500.0,0.00013424,2]
[323442609,1713991859720,-807.78,0.00013424,2]
[323442610,1713991859730,-705.7,0.00013424,2]
[323442611,1713991859739,-1307.93,0.00013424,2]
[323442612,1713991859748,-546.95,0.00013424,2]
[323442613,1713991859758,-1642.17,0.00013424,2]
[323442614,1713991859767,-805.45,0.00013424,2]
[323442615,1713991859777,-500.0,0.00013424,2]
[323442616,1713991859787,-1911.86,0.00013424,2]
[323442617,1713991859796,-500.0,0.00013424,2]
[323442618,1713991859806,-1296.39,0.00013424,2]
[323442619,1713991859815,-690.75,0.00013424,2]
[323442620,1713991859825,-500.0,0.00013424,2]
[323442621,1713991859836,-857.69,0.00013424,2]
[323442622,1713991859845,-2921.56,0.00013424,2]
[323442623,1713991859855,-1941.91,0.00013424,2]
[323442624,1713991859865,-936.37,0.00013424,2]
[323442625,1713991859875,-500.0,0.00013424,2]
[323442626,1713991859884,-1967.54,0.00013424,2]
[323442627,1713991859894,-500.0,0.00013424,2]
[323442628,1713991859904,-3113.04,0.00013424,2]
[323442629,1713991859915,-621.85,0.00013424,2]
[323442630,1713991859925,-611.57,0.00013424,2]
[323442631,1713991859934,-2015.75,0.00013424,2]
[323442632,1713991859944,-500.0,0.00013424,2]
[323442633,1713991859953,-1275.63,0.00013424,2]